fUSD/lending_fUSD_20240913
["ID","MTS","AMOUNT","RATE_DAILY","PERIOD"]
[338022950,1726240254303,-15065.1014717,0.00014896,2]
[338022952,1726240254313,-326.695923,0.00014896,2]
[338022954,1726240254323,-670.52565765,0.00014896,2]
[338022956,1726240254333,-1000.0,0.00014899,2]
[338022958,1726240254343,-1000.0,0.00014899,2]
[338022960,1726240254352,-189.75821615,0.000149,2]
[338022962,1726240254362,-1782.2937783,0.000149,2]
[338022964,1726240254371,-281.78404726,0.000149,2]
[338022966,1726240254381,-151.03303605,0.000149,2]
[338022968,1726240254391,-152.93,0.000149,31]
[338022970,1726240254401,-152.93,0.000149,31]
[338022972,1726240254410,-152.93,0.000149,31]
[338022974,1726240254420,-152.93,0.000149,31]
[338022976,1726240254430,-152.93,0.000149,31]
[338022978,1726240254440,-152.93,0.000149,31]
[338022980,1726240254450,-1275.48443242,0.000149,2]
[338022982,1726240254460,-6879.90472468,0.000149,2]
[338022984,1726240254469,-674.85,0.00014906,2]
[338022985,1726240254480,-674.85,0.00014906,2]
[338022987,1726240254490,-674.85,0.00014906,2]
[338022989,1726240254501,-674.85,0.00014906,2]
[338022991,1726240254513,-675.00604899,0.00014906,2]
[338022993,1726240254524,-707.92,0.00014906,2]
[338022995,1726240254534,-707.92,0.00014906,2]
[338022998,1726240254545,-707.92,0.00014906,2]
[338023000,1726240254554,-707.92,0.00014906,2]
[338023002,1726240254564,-708.05214955,0.00014906,2]
[338023004,1726240254574,-793.73,0.00014906,2]
[338023006,1726240254584,-793.73,0.00014906,2]
[338023008,1726240254594,-793.73,0.00014906,2]
[338023010,1726240254604,-793.73,0.00014906,2]
[338023012,1726240254614,-793.93661571,0.00014906,2]
[338023013,1726240254624,-655.36,0.00014906,2]
[338023016,1726240254635,-655.36,0.00014906,2]
[338023018,1726240254645,-655.36,0.00014906,2]
[338023020,1726240254654,-655.36,0.00014906,2]
[338023022,1726240254664,-655.39306225,0.00014906,2]
[338023023,1726240254674,-1381.16,0.00014906,2]
[338023025,1726240254684,-1381.16,0.00014906,2]
[338023027,1726240254694,-500.0,0.00014906,2]
[338023029,1726240254704,-1381.16,0.00014906,2]
[338023031,1726240254714,-164.81915646,0.00014906,2]
[338023033,1726240254723,-1381.16,0.00014906,2]
[338023035,1726240254733,-1381.36852395,0.00014906,2]
[338023037,1726240254742,-604.97,0.00014906,2]
[338023039,1726240254752,-604.97,0.00014906,2]
[338023041,1726240254761,-604.97,0.00014906,2]
[338023043,1726240254772,-604.97,0.00014906,2]
[338023045,1726240254781,-605.19126884,0.00014906,2]
[338023047,1726240254790,-2813.69,0.00014906,2]
[338023049,1726240254800,-2813.69,0.00014906,2]
[338023051,1726240254810,-2813.69,0.00014906,2]
[338023053,1726240254819,-2813.69,0.00014906,2]
[338023055,1726240254828,-2813.81350324,0.00014906,2]
[338023057,1726240254837,-527.81,0.00014906,2]
[338023059,1726240254846,-527.81,0.00014906,2]
[338023061,1726240254855,-527.81,0.00014906,2]
[338023063,1726240254865,-527.81,0.00014906,2]
[338023065,1726240254874,-527.96177999,0.00014906,2]
[338023067,1726240254884,-500.0,0.00014906,2]
[338023069,1726240254893,-500.0,0.00014906,2]
[338023071,1726240254903,-556.503027,0.00014906,2]
[338023073,1726240254913,-500.0,0.00014906,2]
[338023075,1726240254922,-500.0,0.00014906,2]
[338023077,1726240254932,-500.0,0.00014906,2]
[338023079,1726240254941,-500.0,0.00014906,2]
[338023081,1726240254951,-203.22837921,0.00014906,2]
[338023083,1726240254961,-5229.51,0.00014906,2]
[338023085,1726240254970,-625.84,0.00014906,2]
[338023087,1726240254979,-625.84,0.00014906,2]
[338023088,1726240254988,-625.84,0.00014906,2]
[338023090,1726240254998,-625.84,0.00014906,2]
[338023092,1726240255007,-625.85543982,0.00014906,2]
[338023094,1726240255016,-2367.8516377,0.00014907,2]
[338023096,1726240255031,-2229.4252492,0.00014907,2]
[338023098,1726240255046,-13730.7773176,0.00014907,2]
[338023100,1726240255056,-12396.4531636,0.00014907,2]
[338023102,1726240255065,-307.138616,0.00014907,2]
[338023104,1726240255074,-287.5813091,0.00014907,2]
[338023106,1726240255083,-3555.11,0.00014916,2]
[338023108,1726240255092,-3555.11,0.00014916,2]
[338023110,1726240255101,-3555.11,0.00014916,2]
[338023112,1726240255111,-3555.11,0.00014916,2]
[338023114,1726240255120,-3555.24938932,0.00014916,2]
[338023116,1726240255129,-500.0,0.00014916,2]
[338023118,1726240255139,-3868.47,0.00014916,2]
[338023120,1726240255148,-285.10356259,0.00014916,2]
[338023122,1726240255157,-3868.47,0.00014916,2]
[338023124,1726240255167,-3868.47,0.00014916,2]
[338023125,1726240255176,-3868.47,0.00014916,2]
[338023127,1726240255185,-3868.6418445,0.00014916,2]
[338023129,1726240255194,-500.0,0.00014916,2]
[338023131,1726240255203,-488.16907623,0.00014916,2]
[338023133,1726240255213,-561.68,0.00014916,2]
[338023135,1726240255223,-561.68,0.00014916,2]
[338023136,1726240255232,-561.68,0.00014916,2]
[338023138,1726240255241,-561.68,0.00014916,2]
[338023140,1726240255251,-561.68323478,0.00014916,2]
[338023142,1726240255261,-910.52,0.00014916,2]
[338023144,1726240255272,-910.52,0.00014916,2]
[338023146,1726240255282,-910.52,0.00014916,2]
[338023148,1726240255291,-910.52,0.00014916,2]
[338023150,1726240255301,-910.53918177,0.00014916,2]
[338023151,1726240255311,-3780.95,0.00014916,2]
[338023153,1726240255320,-3780.95,0.00014916,2]
[338023155,1726240255329,-3780.95,0.00014916,2]
[338023157,1726240255338,-3780.95,0.00014916,2]
[338023159,1726240255347,-3780.97701118,0.00014916,2]
[338023161,1726240255357,-1162.4,0.00014916,2]
[338023163,1726240255366,-1162.4,0.00014916,2]
[338023165,1726240255376,-1162.4,0.00014916,2]
[338023166,1726240255385,-1162.4,0.00014916,2]
[338023168,1726240255394,-1162.48342335,0.00014916,2]
[338023170,1726240255404,-500.0,0.00014916,2]
[338023172,1726240255414,-500.0,0.00014916,2]
[338023174,1726240255423,-551.56768142,0.00014916,2]
[338023176,1726240255434,-5229.51,0.00014916,2]
[338023178,1726240255443,-985.21,0.00014916,2]
[338023180,1726240255453,-985.21,0.00014916,2]
[338023182,1726240255463,-985.21,0.00014916,2]
[338023184,1726240255473,-985.21,0.00014916,2]
[338023186,1726240255482,-985.27947975,0.00014916,2]
[338023188,1726240255492,-243380.0,0.00014918,2]
[338023190,1726240255505,-151.0,0.00014918,2]
[338023192,1726240255514,-2090.9988607,0.00014923,2]
[338023194,1726240255527,-11062.1290096,0.00014923,2]
[338023196,1726240255536,-151.0,0.00014923,2]
[338023198,1726240255546,-151.0,0.00014923,2]
[338023200,1726240255555,-268.0240021,0.00014923,2]
[338023201,1726240255564,-151.0,0.00014923,2]
[338023203,1726240255574,-151.0,0.00014923,2]
[338023205,1726240255584,-151.0,0.00014923,2]
[338023207,1726240255595,-151.0,0.00014923,2]
[338023209,1726240255605,-272.661804,0.00014923,2]
[338023211,1726240255614,-151.402599,0.00014923,2]
[338023213,1726240255624,-272.661804,0.00014923,2]
[338023215,1726240255633,-151.0,0.00014923,2]
[338023217,1726240255643,-151.0,0.00014923,2]
[338023219,1726240255652,-151.0,0.00014923,2]
[338023221,1726240255662,-151.0,0.00014923,2]
[338023223,1726240255671,-225.3111898,0.0001493,2]
[338023225,1726240255681,-220.71641,0.00014933,2]
[338023227,1726240255690,-156.098783,0.00014933,2]
[338023228,1726240255699,-204.449691,0.00014933,2]
[338023230,1726240255708,-66377.961813,0.00014933,2]
[338023232,1726240255718,-3627.349437,0.00014933,2]
[338023234,1726240255728,-2549.129079,0.00014933,2]
[338023236,1726240255737,-44251.974542,0.00014933,2]
[338023238,1726240255747,-2418.232958,0.00014933,2]
[338023240,1726240255756,-1699.419386,0.00014933,2]
[338023242,1726240255766,-183.992022,0.00014933,2]
[338023244,1726240255777,-151.0,0.00014933,2]
[338023246,1726240255786,-151.0,0.00014933,2]
[338023247,1726240255796,-151.0,0.00014933,2]
[338023249,1726240255805,-151.0,0.00014933,2]
[338023255,1726240255850,-151.0,0.00014933,2]
[338023257,1726240255859,-151.0,0.00014933,2]
[338023259,1726240255868,-151.0,0.00014933,2]
[338023261,1726240255878,-166.378748,0.00014933,2]
[338023263,1726240255889,-166.378748,0.00014933,2]
[338023265,1726240255902,-175.257202,0.00014933,2]
[338023268,1726240255913,-151.0,0.00014933,2]
[338023270,1726240255924,-175.810098,0.00014933,2]
[338023272,1726240255933,-151.0,0.00014933,2]
[338023274,1726240255944,-2768.565149,0.00014933,2]
[338023276,1726240255954,-151.0,0.00014933,2]
[338023278,1726240255964,-2768.565149,0.00014933,2]
[338023280,1726240255974,-151.0,0.00014933,2]
[338023282,1726240255983,-151.516232,0.00014933,2]
[338023284,1726240255992,-151.0,0.00014933,2]
[338023286,1726240256001,-151.0,0.00014933,2]
[338023288,1726240256009,-151.0,0.00014933,2]
[338023290,1726240256020,-151.0,0.00014933,2]
[338023292,1726240256028,-151.0,0.00014933,2]
[338023294,1726240256038,-150.0,0.0001495,5]
[338023296,1726240256047,-796.0,0.00014975,2]
[338023298,1726240256055,-1952.5724722,0.0001498,2]
[338023299,1726240256065,-1814.1460837,0.0001498,2]
[338023301,1726240256074,-9727.8048556,0.0001498,2]
[338023303,1726240256083,-8393.4807016,0.0001498,2]
[338023305,1726240256093,-248.4666952,0.0001498,2]
[338023307,1726240256101,-228.9093882,0.0001498,2]
[338023309,1726240256111,-5229.51,0.00014989,2]
[338023311,1726240256120,-150000.0,0.0001499,5]
[338023313,1726240256129,-204.0,0.0001499,2]
[338023315,1726240256138,-203.0,0.0001499,2]
[338023317,1726240256147,-203.0,0.0001499,2]
[338023319,1726240256156,-212.0,0.0001499,2]
[338023321,1726240256166,-204.0,0.0001499,2]
[338023323,1726240256175,-213.0,0.0001499,2]
[338023325,1726240256184,-203.0,0.0001499,2]
[338023327,1726240256193,-212.0,0.0001499,2]
[338023328,1726240256201,-203.0,0.0001499,2]
[338023330,1726240256210,-212.0,0.0001499,2]
[338023331,1726240256219,-151.0,0.0001499,2]
[338023332,1726240256228,-151.0,0.0001499,2]
[338023333,1726240256237,-5455.76830868,0.00014999,2]
[338023334,1726240256245,-386.90560711,0.00014999,3]
[338023335,1726240256255,-5915.57051263,0.00014999,2]
[338023347,1726240256446,-1608.02385753,0.00014999,2]
[338023349,1726240256457,-12301.00854412,0.00014999,2]
[338023351,1726240256466,-456.73627088,0.00014999,3]
[338023353,1726240256475,-4533.14963135,0.00014999,2]
[338023354,1726240256484,-569.2942,0.00014999,2]
[338023356,1726240256494,-15762.63140444,0.00014999,2]
[338023358,1726240256504,-3259.2,0.00014999,2]
[338023360,1726240256515,-151.0,0.00014999,2]
[338023362,1726240256525,-151.0,0.00014999,2]
[338023364,1726240256535,-151.0,0.00014999,2]
[338023366,1726240256544,-152.276292,0.00014999,2]
[338023368,1726240256553,-151.0,0.00014999,2]
[338023370,1726240256563,-151.0,0.00014999,2]
[338023372,1726240256572,-151.0,0.00014999,2]
[338023374,1726240256581,-151.0,0.00014999,2]
[338023376,1726240256591,-151.0,0.00014999,2]
[338023378,1726240256601,-151.0,0.00014999,2]
[338023380,1726240256611,-151.0,0.00014999,2]
[338023382,1726240256621,-363.37236,0.00014999,2]
[338023384,1726240256631,-363.37236,0.00014999,2]
[338023385,1726240256641,-5229.51,0.00014999,2]
[338023387,1726240256651,-5229.51,0.00014999,2]
[338023389,1726240256660,-5229.51,0.00014999,2]
[338023391,1726240256671,-3470.27186518,0.00014999,2]
[338023394,1726240256686,-151.0,0.00014794,2]
[338023396,1726240256696,-1759.23813482,0.00014999,2]
[338023398,1726240256706,-4990.50522943,0.00014999,2]
[338023400,1726240256717,-239.17394907,0.00014999,2]
[338023402,1726240256728,-50463.44874682,0.00015,2]
[338023404,1726240256740,-18577.93804003,0.00015,2]
[338023407,1726240256758,-444.37856495,0.00014794,2]
[338023408,1726240256769,-63047.21479884,0.00015,2]
[338023421,1726240256880,-1070.31820487,0.00012642,2]
[338023423,1726240256890,-151.0,0.00014933,2]
[338023424,1726240256899,-578566.5785829,0.00015,2]
[338023426,1726240256909,-1066.08962932,0.00015,2]
[338023428,1726240256920,-3933.91037068,0.00015,2]
[338023430,1726240256928,-2007.85057333,0.00015,2]
[338023432,1726240256939,-2992.14942667,0.00015,2]
[338023434,1726240256948,-4573.40877236,0.00015,2]
[338023436,1726240256959,-532.53977691,0.00015,2]
[338023438,1726240256970,-478.97014812,0.00015,2]
[338023440,1726240256982,-1274.77753355,0.00015,2]
[338023442,1726240256994,-373.56117198,0.00015,2]
[338023453,1726240257101,-445.70504057,0.00012862,2]
[338023455,1726240257113,-6014.64935943,0.00012862,2]
[338023457,1726240257122,-145.85598181,0.0001398,2]
[338023459,1726240257134,-67.48032422,0.0001398,2]
[338023461,1726240257143,-150.0,0.00014692,2]
[338023463,1726240257152,-1074.54728798,0.00014771,2]
[338023465,1726240257162,-150.0,0.00014841,2]
[338023467,1726240257171,-37090.7030613,0.00015,2]
[338023470,1726240257182,-8679.59506081,0.00015,2]
[338023499,1726240257472,-230.6938944,0.00014785,2]
[338023501,1726240257482,-780.52377226,0.00015,2]
[338023503,1726240257496,-234416.23117203,0.00015,2]
[338023505,1726240257509,-1034.52327984,0.00015,2]
[338023507,1726240257521,-1000.0,0.00015,2]
[338023509,1726240257533,-608.95162954,0.00015,2]
[338023512,1726240257546,-290644.9565885,0.00015,2]
[338023514,1726240257558,-1605.35180376,0.00015,2]
[338023516,1726240257570,-4078.9714258,0.00015,2]
[338023519,1726240257591,-267.9483656,0.0001398,2]
[338023521,1726240257603,-554.5306975,0.0001398,2]
[338023525,1726240257634,-111.32675721,0.0001398,2]
[338023527,1726240257644,-1758.97986459,0.00015,2]
[338023530,1726240257655,-851.8748782,0.00015,2]
[338023532,1726240257667,-708.1,0.00015,2]
[338023534,1726240257678,-2660.46376001,0.00015,2]
[338023536,1726240257695,-594.37105898,0.00015,2]
[338023538,1726240257706,-1063.77292749,0.00015,2]
[338023540,1726240257718,-1216.07779227,0.00015,2]
[338023542,1726240257728,-6751.79144901,0.00015,2]
[338023544,1726240257739,-431.22961645,0.00015,2]
[338023546,1726240257750,-420258.62356268,0.00015,2]
[338023548,1726240257761,-4270.11567464,0.00015,2]
[338023550,1726240257772,-634.74577782,0.00015,2]
[338023553,1726240257783,-1294.63954852,0.00015,2]
[338023555,1726240257793,-3648.9525255,0.00015,2]
[338023557,1726240257804,-275.40939529,0.00015,2]
[338024568,1726240295442,176.24,0.00010959,2]
[338024569,1726240305019,9364.0,0.000102,5]
[338024570,1726240310897,500.0,0.00011164,2]
[338024571,1726240428173,500.0,0.00011164,2]
[338024572,1726240428254,501.6808368,0.00011164,2]
[338024573,1726240468383,500.0,0.00011164,2]
[338024574,1726240741415,1050.0,0.00011,2]
[338024575,1726240803477,155.4,0.00010959,2]
[338024576,1726240815347,602.87,0.00011415,2]
[338024577,1726240870535,506.16,0.00012,2]
[338024579,1726241133185,819.95,0.00010959,2]
[338024580,1726241266762,235.73,0.00012151,2]
[338024582,1726241298524,160.2,0.0001213,2]
[338024583,1726241305379,200.0,0.00012151,2]
[338024587,1726241415972,572.72,0.00010135,2]
[338024588,1726241418689,1456.15,0.00012053,2]
[338024589,1726241423686,250.0,0.00011994,2]
[338024603,1726241432387,-150.0,0.00012279,2]
[338024604,1726241432396,-142.755,0.0001228,2]
[338024605,1726241432408,-277806.94856797,0.0001228,2]
[338024606,1726241432418,-974.55128174,0.000123,2]
[338024607,1726241432427,-572.72,0.00012399,2]
[338024608,1726241432436,-300.0,0.000124,4]
[338024609,1726241432446,-700.0,0.000125,4]
[338024610,1726241432455,-167.0,0.00012516,2]
[338024611,1726241432465,-974.55128173,0.00012589,2]
[338024612,1726241432475,-1100.0,0.000126,4]
[338024613,1726241432485,-3100.73005047,0.000126,2]
[338024614,1726241432494,-1500.0,0.000127,4]
[338024615,1726241432504,-200.0,0.00012766,2]
[338024616,1726241432513,-1900.0,0.000128,4]
[338024617,1726241432523,-16355.6756,0.00012862,2]
[338024618,1726241432533,-974.55128173,0.00012878,2]
[338024619,1726241432542,-300.0,0.000129,4]
[338024620,1726241432552,-3920.9151,0.000129,2]
[338024621,1726241432561,-727.61600379,0.000129,2]
[338024622,1726241432570,-307.12609914,0.000129,2]
[338024623,1726241432580,-727.61600378,0.00012906,2]
[338024624,1726241432588,-370.64046514,0.00012911,2]
[338024625,1726241432597,-727.61600378,0.00012911,2]
[338024626,1726241432607,-500.0,0.00012973,2]
[338024627,1726241432618,-152.83,0.0001299,2]
[338024628,1726241432627,-152.83,0.0001299,2]
[338024629,1726241432637,-152.83,0.0001299,2]
[338024630,1726241432647,-152.83,0.0001299,2]
[338024631,1726241432656,-152.83,0.0001299,2]
[338024632,1726241432665,-152.83,0.0001299,2]
[338024633,1726241432675,-152.83,0.0001299,2]
[338024634,1726241432685,-152.83,0.0001299,2]
[338024635,1726241432694,-152.83,0.0001299,2]
[338024636,1726241432703,-152.83,0.0001299,2]
[338024637,1726241432712,-152.83,0.0001299,2]
[338024638,1726241432722,-235.49234249,0.00012999,2]
[338024639,1726241432731,-61482.95933093,0.00013,2]
[338024640,1726241432742,-1300.0,0.00013,2]
[338024641,1726241432754,-1928.20760668,0.00013,2]
[338024642,1726241432765,-1371.79239332,0.00013,2]
[338024643,1726241432776,-1174.76,0.00013,2]
[338024644,1726241432787,-992.66043738,0.00013,2]
[338024645,1726241432798,-1635.00155891,0.00013,2]
[338024646,1726241432809,-49904.54773245,0.00013,2]
[338024647,1726241433037,-345.31213893,0.00012972,2]
[338024648,1726241433050,-500.0,0.00012972,2]
[338024649,1726241433060,-3934.22057186,0.00013,2]
[338024656,1726241438166,-7474.3686,0.0001218,2]
[338024657,1726241438176,-500.0,0.00012972,2]
[338024658,1726241438185,-500.0,0.00012972,2]
[338024659,1726241438195,-376.18843334,0.00012972,2]
[338024660,1726241438204,-74087.02040851,0.00013,2]
[338024661,1726241438310,-89290.61092248,0.00013,2]
[338024662,1726241438322,-590.0,0.00013,2]
[338024663,1726241438357,-135268.54539237,0.00013,2]
[338024664,1726241438367,-431.58,0.00013,2]
[338024665,1726241438385,-500.0,0.00013,2]
[338024666,1726241438395,-303.4,0.00013,2]
[338024667,1726241438404,-999.62,0.00013,2]
[338024668,1726241438413,-354087.7877636,0.00013,2]
[338024669,1726241438428,-3000.60438524,0.00013,2]
[338024670,1726241438439,-84221.36661858,0.00013,2]
[338024671,1726241438543,-294.45134948,0.00013,2]
[338024672,1726241438556,-29561.64748557,0.00013,2]
[338024829,1726241440203,-358644.98409755,0.00013,2]
[338024837,1726241440264,-1174.78865982,0.00013,2]
[338024843,1726241440308,-28332.41412583,0.00013,2]
[338024857,1726241440443,-3241.9777683,0.00013,2]
[338024859,1726241440455,-474.615,0.00013,2]
[338024861,1726241440466,-1694.39865633,0.00013,2]
[338024863,1726241440477,-530.86535505,0.00013,2]
[338025270,1726241444372,-1377.74172289,0.00013,2]
[338025273,1726241444386,-58563.00000002,0.00013,2]
[338025275,1726241444398,-5350.19999999,0.00013,2]
[338025278,1726241444414,-17775.2796,0.00013,2]
[338025280,1726241444425,-45567.37598164,0.00013,2]
[338025282,1726241444437,-622881.22644947,0.00013,2]
[338025284,1726241444448,-4675.74706937,0.00013,2]
[338025286,1726241444460,-413.1164353,0.00013,2]
[338025288,1726241444471,-411.7493109,0.00013,2]
[338025291,1726241444489,-400.30481951,0.00013,2]
[338025294,1726241444500,-500.0,0.00013,2]
[338025424,1726241446343,-2858.56287337,0.00013,2]
[338025427,1726241446355,-3362.7485113,0.00013,2]
[338025429,1726241446366,-2189.5392959,0.00013,2]
[338025431,1726241446379,-1834.85362429,0.00013,2]
[338025433,1726241446390,-6172.81784563,0.00013,2]
[338025434,1726241446401,-6882.92088896,0.00013,2]
[338025435,1726241446411,-12252.62796563,0.00013,2]
[338025437,1726241446422,-1741.01490028,0.00013,2]
[338025440,1726241446437,-717.12394233,0.00013,2]
[338025442,1726241446447,-3077.64182638,0.00013,2]
[338025444,1726241446459,-6048.65000081,0.00013,2]
[338025446,1726241446471,-383.87296915,0.00013,2]
[338025449,1726241446482,-2479.97084612,0.00013,2]
[338025451,1726241446495,-432.5,0.00013,2]
[338025453,1726241446508,-1529.65936875,0.00013,2]
[338025456,1726241446523,-5884.10145004,0.00013,2]
[338025458,1726241446537,-1141.6,0.00013,2]
[338025460,1726241446548,-11351.35798601,0.00013,2]
[338025462,1726241446559,-684.36699985,0.00013,2]
[338025465,1726241446570,-2953.00604937,0.00013,2]
[338025467,1726241446581,-595.74991999,0.00013,2]
[338025469,1726241446595,-594.96858718,0.00013,2]
[338025471,1726241446606,-4666.27831828,0.00013,2]
[338025474,1726241446617,-1195.57080635,0.00013,2]
[338025476,1726241446631,-1026.90588001,0.00013,2]
[338025478,1726241446641,-721.62621433,0.00013,2]
[338025480,1726241446652,-5923.918,0.00013,2]
[338025482,1726241446663,-295.25514135,0.00013,2]
[338025485,1726241446678,-1458.83968283,0.00013,2]
[338025487,1726241446689,-409.14193754,0.00013,2]
[338025489,1726241446700,-93026.83492934,0.00013,2]
[338025492,1726241446722,-2135.07814337,0.00013,2]
[338025495,1726241446733,-3035.9509973,0.00013,2]
[338025497,1726241446744,-352.00825219,0.00013,2]
[338025501,1726241446771,-396804.33859631,0.00013,2]
[338026331,1726241455417,1157.0,0.000102,5]
[338026406,1726241765502,1000.0,0.0001206,2]
[338026407,1726241807318,158.52,0.0001206,2]
[338026408,1726241821362,164.77,0.00012009,2]
[338026409,1726241828594,2000.0,0.00012009,2]
[338026410,1726241832222,1722.16196371,0.00012089,2]
[338026411,1726241852415,1168.1644,0.0001208,2]
[338026414,1726241898874,409.63,0.00011914,2]
[338026416,1726241939795,7353.32,0.00011908,2]
[338026417,1726241999769,250.0,0.00011908,2]
[338026418,1726242052909,535.19,9.956e-05,2]
[338026419,1726242074866,150.0,0.00011828,2]
[338026420,1726242101638,250.0,0.000118,2]
[338026421,1726242124955,250.0,0.00011888,2]
[338026422,1726242167756,5582.88,0.00011926,2]
[338026423,1726242229663,246.64,0.00012019,2]
[338026424,1726242257652,1618.62340512,0.00012089,2]
[338026425,1726242287719,173.76,0.00012049,2]
[338026426,1726242288045,173.76,0.00012061,2]
[338026427,1726242288261,173.76,0.00012073,2]
[338026428,1726242288503,173.76,0.00012085,2]
[338026429,1726242288728,173.76,0.00012097,2]
[338026430,1726242288980,173.76,0.00012109,2]
[338026431,1726242310038,200.0,0.00012116,2]
[338026432,1726242311421,201.05023824,0.00011688,2]
[338026433,1726242456391,3515.1513,0.0001208,2]
[338026434,1726242544009,1050.0,0.00011,2]
[338026452,1726242632263,-905.36012168,0.00012179,2]
[338026453,1726242632274,-2670.21,0.00012179,2]
[338026454,1726242632285,-664.57727663,0.00012179,2]
[338026455,1726242632296,-477.03512365,0.00012179,2]
[338026456,1726242632307,-862.70147104,0.00012179,2]
[338026457,1726242632318,-2986.44818972,0.00012179,2]
[338026458,1726242632329,-295.33202042,0.00012179,2]
[338026459,1726242632340,-1742.3433777,0.00012179,2]
[338026460,1726242632350,-150.0,0.00012179,2]
[338026461,1726242632359,-81.83971867,0.0001218,2]
[338026462,1726242632370,-750.26546194,0.0001218,2]
[338026463,1726242632383,-1266.60175907,0.0001218,2]
[338026464,1726242632400,-351.89855854,0.0001218,2]
[338026465,1726242632410,-1193.00124,0.0001218,2]
[338026466,1726242632422,-9850.19426178,0.0001218,2]
[338026467,1726242632432,-121778.17422113,0.0001218,2]
[338026468,1726242632447,-6858.51768117,0.0001218,2]
[338026469,1726242632459,-5621.07153573,0.0001218,2]
[338026470,1726242632474,-22658.45920343,0.0001218,2]
[338026471,1726242632486,-1412.14945512,0.0001218,2]
[338026472,1726242632498,-1895.56766088,0.0001218,2]
[338026473,1726242632510,-983.93,0.0001218,2]
[338026474,1726242632521,-549.52917014,0.0001218,2]
[338026475,1726242632532,-4048.7911127,0.0001218,2]
[338026476,1726242632544,-793.35,0.0001218,2]
[338026477,1726242634961,-12559.51491428,0.0001218,2]
[338026478,1726242634973,-1255.12,0.0001218,2]
[338026479,1726242634984,-5395.38119057,0.0001218,2]
[338026480,1726242634996,-4298.65525732,0.0001218,2]
[338026494,1726242638292,-2936.80849753,0.0001218,2]
[338026495,1726242638301,-204.81,0.00012192,2]
[338026497,1726242638311,-504.581576,0.00012192,2]
[338026498,1726242638321,-535.19,0.0001222,2]
[338026499,1726242638330,-150.0,0.00012274,2]
[338026500,1726242638339,-1558.11,0.00012314,2]
[338026501,1726242638350,-167.0,0.00012445,2]
[338026502,1726242638359,-176.0,0.00012487,2]
[338026503,1726242638369,-499.99,0.00012614,2]
[338026504,1726242638378,-1689.48,0.00012614,2]
[338026505,1726242638387,-1431.05,0.0001274,2]
[338026506,1726242638397,-659.7313,0.000129,2]
[338026507,1726242638407,-166.39250321,0.000129,2]
[338026508,1726242638417,-166.44484902,0.000129,2]
[338026509,1726242638426,-554.59003796,0.000129,2]
[338026510,1726242638435,-3348.59095991,0.000129,2]
[338026511,1726242638452,-451.57864314,0.000129,2]
[338026512,1726242638463,-200.92087461,0.000129,2]
[338026513,1726242638476,-674.94898,0.00012962,2]
[338026514,1726242638486,-79.56451775,0.00012973,2]
[338026515,1726242638498,-420.43548225,0.00012973,2]
[338026516,1726242638508,-150.39,0.0001299,2]
[338026517,1726242638519,-537.9419557,0.0001299,2]
[338026518,1726242638529,-537.9419557,0.0001299,2]
[338026519,1726242638539,-537.9419557,0.0001299,2]
[338026520,1726242638549,-208.46538148,0.00012999,2]
[338026521,1726242638559,-500.0,0.00012999,2]
[338026522,1726242638569,-376.18843334,0.00012999,2]
[338026523,1726242638578,-500.0,0.00012999,2]
[338026524,1726242638589,-420.6543901,0.00012999,2]
[338026525,1726242638599,-500.0,0.00012999,2]